2CCN - Level 2 Cost Centre Name,,9CCN - Level 9 Cost Centre Name,9CCC - Level 9 Cost Centre Code,9AN - Level 9 Account Name,9AC - Level 9 Account Code,Date posted,Date of transaction,Merchant Name,Merchant City,Merchant State,Merchant Zip Code,Originating Account Name,Originating Account Number,MCC/SIC Code,MCC Description,Original Amount,Currency,Conversion Rate,Billed Amount,Debit Credit,Reference Number,Statement Cycle,Account Name
Gloucester City Council,23UE,Museum of Gloucester,MU002,Exhibition Costs,3021,05/08/2019,01/08/2019,AMZNMKTPLACE AMAZON.CO,AMAZON.CO.UK,GBR,EC2A 2FA,REDACTED,556*********2362,5999,MISCELLANEOUS AND RETAIL STORES,23.97,Pound Sterling (826),1.000000000,23.97,Debit,85389249214930842200698,02/09/2019,GLOUCESTER CITY COUNCIL
Gloucester City Council,23UE,Museum of Gloucester,MU002,Advertising & Publicity,3404,05/08/2019,04/08/2019,FACEBK *QYBW4MEKW2,fb.me/ads,IRL,UNKNOWN,REDACTED,556*********2362,7311,ADVERTISING SERVICES,30,Pound Sterling (826),1.000000000,30,Debit,55204729216200393047418,02/09/2019,GLOUCESTER CITY COUNCIL
Gloucester City Council,23UE,Museum of Gloucester Catering,MU004,Exhibition Costs,3021,13/08/2019,12/08/2019,TESCO STORES 5363,GLOUCESTER,GBR,GL3 4AA,REDACTED,556*********2362,5411,"GROCERY STORES, SUPERMARKETS",2.18,Pound Sterling (826),1.000000000,2.18,Debit,15377759225000079100833,02/09/2019,GLOUCESTER CITY COUNCIL
Gloucester City Council,23UE,Museum of Gloucester,MU002,Exhibition Costs,3021,19/08/2019,17/08/2019,B & Q 1179,GLOUCESTER,,GL12SG,REDACTED,556*********2362,5200,HOME SUPPLY WAREHOUSE STORES,197.8,Pound Sterling (826),1.000000000,197.8,Debit,85481479230164490539807,02/09/2019,GLOUCESTER CITY COUNCIL
Gloucester City Council,23UE,Museum of Gloucester Catering,MU004,Catering Provisions,3103,19/08/2019,17/08/2019,ASDA SUPERSTORE,GLOUCESTER,GBR,GL1 1DS,REDACTED,556*********2362,5411,"GROCERY STORES, SUPERMARKETS",15.06,Pound Sterling (826),1.000000000,15.06,Debit,15377759230040705164327,02/09/2019,GLOUCESTER CITY COUNCIL
Gloucester City Council,23UE,Museum of Gloucester,MU002,General Supplies/Materials,3025,21/08/2019,20/08/2019,TIMPSON LTD,GLOUCESTER,,GL11RW,REDACTED,556*********2362,7251,"SHOE REPAIR SHOPS, SHOE SHINE PARLORS & HAT CLEANING SHOPS",17,Pound Sterling (826),1.000000000,17,Debit,85481479232165226526719,02/09/2019,GLOUCESTER CITY COUNCIL
Gloucester City Council,23UE,Museum of Gloucester,MU002,Exhibition Costs,3021,22/08/2019,21/08/2019,AMZNMktplace,amazon.co.uk,GBR,EC2A 2FA,REDACTED,556*********2362,5999,MISCELLANEOUS AND RETAIL STORES,41.9,Pound Sterling (826),1.000000000,41.9,Debit,55204729233200385051971,02/09/2019,GLOUCESTER CITY COUNCIL
Gloucester City Council,23UE,Museum of Gloucester Catering,MU004,Hospitality & Refreshments,3104,26/08/2019,24/08/2019,ASDA SUPERSTORE,GLOUCESTER,GBR,GL1 1DS,REDACTED,556*********2362,5411,"GROCERY STORES, SUPERMARKETS",7.44,Pound Sterling (826),1.000000000,7.44,Debit,15377759237090733499032,02/09/2019,GLOUCESTER CITY COUNCIL
Gloucester City Council,23UE,Museum of Gloucester,MU002,Exhibition Costs,3021,26/08/2019,24/08/2019,B & Q 1179,GLOUCESTER,,GL12SG,REDACTED,556*********2362,5200,HOME SUPPLY WAREHOUSE STORES,199,Pound Sterling (826),1.000000000,199,Debit,85481479237166373185155,02/09/2019,GLOUCESTER CITY COUNCIL
Gloucester City Council,23UE,Museum of Gloucester Catering,MU004,General Supplies/Materials,3025,26/08/2019,25/08/2019,THE RANGE,GLOUCESTER,,GL4 3BY,REDACTED,556*********2362,5311,DEPARTMENT STORES,27.03,Pound Sterling (826),1.000000000,27.03,Debit,85481479238166667085060,02/09/2019,GLOUCESTER CITY COUNCIL
Gloucester City Council,23UE,Museum of Gloucester,MU002,General Supplies/Materials,3025,27/08/2019,26/08/2019,Amazon.co.uk*MA4RG3FT4,AMAZON.CO.UK,LUX,L2338,REDACTED,556*********2362,5969,ALL OTHER DIRECT MARKETERS,41.48,Pound Sterling (826),1.000000000,41.48,Debit,55204729238200623223924,02/09/2019,GLOUCESTER CITY COUNCIL
Gloucester City Council,23UE,Museum of Gloucester Catering,MU004,Catering Provisions,3103,02/09/2019,31/08/2019,ASDA SUPERSTORE,GLOUCESTER,GBR,GL1 1DS,REDACTED,556*********2362,5411,"GROCERY STORES, SUPERMARKETS",11.15,Pound Sterling (826),1.000000000,11.15,Debit,15377759244030757610040,02/09/2019,GLOUCESTER CITY COUNCIL
Gloucester City Council,23UE,Community Wellbeing,FL001,Conference Fees,0553,05/08/2019,01/08/2019,THEHUBLONDONW$49637105,LONDON SW1H,,,REDACTED,471*********7903,3811,PREMIER INN,190,Pound Sterling (826),1.000000000,190,Debit,74085329215529000171269,02/09/2019,GLOUCESTER CITY COUNCIL
Gloucester City Council,23UE,Financial Services,FS004,Public Transport - Staff,2402,07/08/2019,06/08/2019,Trainline,London,GBR,1445,REDACTED,556*********1418,4112,PASSENGER RAILWAYS,85.5,Pound Sterling (826),1.000000000,85.5,Debit,85130089218931893143389,02/09/2019,GLOUCESTER CITY COUNCIL
Gloucester City Council,23UE,Transformation,MT006,Equipment and Furniture,3001,29/08/2019,27/08/2019,AMZNMKTPLACE AMAZON.CO,AMAZON.CO.UK,GBR,EC2A 2FA,REDACTED,556*********1418,5999,MISCELLANEOUS AND RETAIL STORES,86.95,Pound Sterling (826),1.000000000,86.95,Debit,85389249240934156242435,02/09/2019,GLOUCESTER CITY COUNCIL
Gloucester City Council,23UE,Managing Director & Directors,MT001,Public Transport - Staff,2402,29/08/2019,28/08/2019,Trainline,London,GBR,1445,REDACTED,556*********1418,4112,PASSENGER RAILWAYS,72,Pound Sterling (826),1.000000000,72,Debit,85130089240934807799926,02/09/2019,GLOUCESTER CITY COUNCIL
Gloucester City Council,23UE,Managing Director & Directors,MT001,Public Transport - Staff,2402,29/08/2019,28/08/2019,Trainline,London,GBR,1445,REDACTED,556*********1418,4112,PASSENGER RAILWAYS,64.55,Pound Sterling (826),1.000000000,64.55,Debit,85130089240934807804155,02/09/2019,GLOUCESTER CITY COUNCIL
Gloucester City Council,23UE,Members Support,DS002,Members Travel Expenses/Conservative Group,3609/C202,29/08/2019,28/08/2019,Trainline,London,GBR,1445,REDACTED,556*********1418,4112,PASSENGER RAILWAYS,27.15,Pound Sterling (826),1.000000000,27.15,Debit,85130089240934807766818,02/09/2019,GLOUCESTER CITY COUNCIL
Gloucester City Council,23UE,Countryside Unit,EP003,Vehicle Repairs and Maintenance,2103,07/08/2019,06/08/2019,PAYPAL *FASTCARDIRE,35314369001,GBR,TW91EH,REDACTED,556*********6734,5533,"AUTOMOTIVE PARTS, ACCESSORIES STORES",37.85,Pound Sterling (826),1.000000000,37.85,Debit,85130089218931886592402,02/09/2019,GLOUCESTER CITY COUNCIL
Gloucester City Council,23UE,Guildhall Bar and Caf�,GH005,Catering Provisions,3103,05/08/2019,02/08/2019,SAINSBURYS SACAT 0771,GLOUCESTER,GBR,GL1 2AG,REDACTED,556*********1155,5411,"GROCERY STORES, SUPERMARKETS",12.55,Pound Sterling (826),1.000000000,12.55,Debit,25425159215040225456354,02/09/2019,GLOUCESTER CITY COUNCIL
Gloucester City Council,23UE,Guildhall Bar and Caf�,GH005,External Training Course Fees,0550,08/08/2019,06/08/2019,CPLTRAINING,441506506910,GBR,CH411FN,REDACTED,556*********1155,8220,"COLLEGES, UNIVERSITIES, PROFESSIONAL SCHOOLS AND JUNIOR COLLEGES",168,Pound Sterling (826),1.000000000,168,Debit,85130089219931899053805,02/09/2019,GLOUCESTER CITY COUNCIL
Gloucester City Council,23UE,Guildhall Bar and Caf�,GH005,Equipment and Furniture,3001,16/08/2019,15/08/2019,WWW.INSTANTPRINT.C,01709 382202,,S63 5DR,REDACTED,556*********1155,7338,QUICK-COPY AND REPRODUCTION SERVICES,22.99,Pound Sterling (826),1.000000000,22.99,Debit,85481479228163971462566,02/09/2019,GLOUCESTER CITY COUNCIL
Gloucester City Council,23UE,Blackfriars ,GH010,Catering Provisions,3103,19/08/2019,16/08/2019,TESCO STORE 2581,GLOUCESTER,GBR,GL1 2SR,REDACTED,556*********1155,5411,"GROCERY STORES, SUPERMARKETS",13.25,Pound Sterling (826),1.000000000,13.25,Debit,15377759229040067431234,02/09/2019,GLOUCESTER CITY COUNCIL
Gloucester City Council,23UE,Guildhall Bar and Caf�,GH005,Catering Provisions,3103,20/08/2019,19/08/2019,BOOKER LIMITED GLOUCES,GLOUCESTER,GBR,GL4 3RT,REDACTED,556*********1155,5811,CATERERS,5.99,Pound Sterling (826),1.000000000,5.99,Debit,55184229231512328066115,02/09/2019,GLOUCESTER CITY COUNCIL
Gloucester City Council,23UE,Guildhall Events,GH002,Catering Provisions,3103,21/08/2019,20/08/2019,ASDA GROCERIES ONLINE,INTERNET,GBR,LS11 5AD,REDACTED,556*********1155,5411,"GROCERY STORES, SUPERMARKETS",155.56,Pound Sterling (826),1.000000000,155.56,Debit,65377759233060352216909,02/09/2019,GLOUCESTER CITY COUNCIL
Gloucester City Council,23UE,Guildhall Events,GH002,Catering Provisions,3103,21/08/2019,20/08/2019,ASDA GROCERIES ONLINE,INTERNET,GBR,LS11 5AD,REDACTED,556*********1155,5411,"GROCERY STORES, SUPERMARKETS",-3.66,Pound Sterling (826),1.000000000,-3.66,Credit,65377759233060352393237,02/09/2019,GLOUCESTER CITY COUNCIL
Gloucester City Council,23UE,Guildhall Events,GH002,Catering Provisions,3103,22/08/2019,21/08/2019,SAINSBURYS SACAT 0771,GLOUCESTER,GBR,GL1 2AG,REDACTED,556*********1155,5411,"GROCERY STORES, SUPERMARKETS",20.35,Pound Sterling (826),1.000000000,20.35,Debit,25425159234070211131833,02/09/2019,GLOUCESTER CITY COUNCIL
Gloucester City Council,23UE,Guildhall Events,GH002,Catering Provisions,3103,22/08/2019,21/08/2019,MARKS&SPENCER PLC,GLOUCESTER,GBR,GL1 1PH,REDACTED,556*********1155,5411,"GROCERY STORES, SUPERMARKETS",36.6,Pound Sterling (826),1.000000000,36.6,Debit,25377759234070185723354,02/09/2019,GLOUCESTER CITY COUNCIL
Gloucester City Council,23UE,Blackfriars ,GH010,Catering Provisions,3103,23/08/2019,22/08/2019,LIDL GB GLOUCESTER,GLOUCESTER,GBR,GL4 4LP,REDACTED,556*********1155,5411,"GROCERY STORES, SUPERMARKETS",22.1,Pound Sterling (826),1.000000000,22.1,Debit,15377759235080034528060,02/09/2019,GLOUCESTER CITY COUNCIL
Gloucester City Council,23UE,Blackfriars ,GH010,Catering Provisions,3103,23/08/2019,22/08/2019,BOOKER LIMITED GLOUCES,GLOUCESTER,GBR,GL4 3RT,REDACTED,556*********1155,5811,CATERERS,195.53,Pound Sterling (826),1.000000000,195.53,Debit,55184229234522356701787,02/09/2019,GLOUCESTER CITY COUNCIL
Gloucester City Council,23UE,Blackfriars ,GH010,Catering Provisions,3103,26/08/2019,23/08/2019,BOOKER LIMITED GLOUCES,GLOUCESTER,GBR,GL4 3RT,REDACTED,556*********1155,5811,CATERERS,159.53,Pound Sterling (826),1.000000000,159.53,Debit,55184229235522364457926,02/09/2019,GLOUCESTER CITY COUNCIL
Gloucester City Council,23UE,Gloucester Guildhall,GH001,Professional Advice/Consultants Fees,3952,07/08/2019,06/08/2019,Trainline.com,London,GBR,EC1N 2TD,REDACTED,556*********8997,4112,PASSENGER RAILWAYS,81,Pound Sterling (826),1.000000000,81,Debit,15265679218000038410111,02/09/2019,GLOUCESTER CITY COUNCIL
Gloucester City Council,23UE,Gloucester Guildhall,GH001,General Supplies/Materials,3025,08/08/2019,06/08/2019,TVLICENSING.CO.UK,3007906071,,BS1 6AB,REDACTED,556*********8997,7392,"MANAGEMENT, CONSULTING AND PUBLIC RELATIONS SERVICES",154.5,Pound Sterling (826),1.000000000,154.5,Debit,85481479219161881505129,02/09/2019,GLOUCESTER CITY COUNCIL
Gloucester City Council,23UE,Guildhall Events,GH002,Events,3070,09/08/2019,06/08/2019,MIPERMIT LTD,INTERNET,GBR,SN15 5FD,REDACTED,556*********8997,7523,AUTOMOBILE PARKING LOTS AND GARAGES,70,Pound Sterling (826),1.000000000,70,Debit,05272479221910003463865,02/09/2019,GLOUCESTER CITY COUNCIL
Gloucester City Council,23UE,Guildhall Events,GH002,Advertising & Publicity,3404,16/08/2019,15/08/2019,WWW.INSTANTPRINT.C,01709 382202,,S63 5DR,REDACTED,556*********8997,7338,QUICK-COPY AND REPRODUCTION SERVICES,23.99,Pound Sterling (826),1.000000000,23.99,Debit,85481479228163971462590,02/09/2019,GLOUCESTER CITY COUNCIL
Gloucester City Council,23UE,Gloucester Guildhall,GH001,Equipment and Furniture,3001,19/08/2019,16/08/2019,STAGEDEPOT.CO.UK,0117 3250336,,BS4 5QR,REDACTED,556*********8997,5251,HARDWARE STORES,96,Pound Sterling (826),1.000000000,96,Debit,85481479229164263584488,02/09/2019,GLOUCESTER CITY COUNCIL
Gloucester City Council,23UE,Gloucester Guildhall,GH001,Equipment and Furniture,3001,19/08/2019,16/08/2019,Premier Farnell,Preston,GBR,LS12 2NE,REDACTED,556*********8997,5065,ELECTRICAL PARTS AND EQUIPMENT,6.72,Pound Sterling (826),1.000000000,6.72,Debit,85130089230932320951794,02/09/2019,GLOUCESTER CITY COUNCIL
Gloucester City Council,23UE,Guildhall Events,GH002,Advertising & Publicity,3404,19/08/2019,18/08/2019,MAILCHIMP *MONTHLY,MAILCHIMP.COM,GA,30308,REDACTED,556*********8997,5968,CONTINUITY/SUBSCRIPTION MERCHANTS,25.04,Pound Sterling (826),1.000000000,25.04,Debit,55425449230200800010785,02/09/2019,GLOUCESTER CITY COUNCIL
Gloucester City Council,23UE,Guildhall Events,GH002,Advertising & Publicity,3404,19/08/2019,18/08/2019,FACEBK *ZRUPMMA9X2,fb.me/ads,IRL,UNKNOWN,REDACTED,556*********8997,7311,ADVERTISING SERVICES,167.24,Pound Sterling (826),1.000000000,167.24,Debit,55204729230200789441581,02/09/2019,GLOUCESTER CITY COUNCIL
Gloucester City Council,23UE,Museum of Gloucester,MU002,Events,3070,20/08/2019,19/08/2019,FACEBK VBP4HMSKC2,fb.me/ads,IRL,2,REDACTED,556*********8997,7311,ADVERTISING SERVICES,15,Pound Sterling (826),1.000000000,15,Debit,15265679231254798543644,02/09/2019,GLOUCESTER CITY COUNCIL
Gloucester City Council,23UE,Guildhall Events,GH002,Advertising & Publicity,3404,21/08/2019,20/08/2019,VISTAPR*VistaPrint.com,866-8936743,NLD,LW 5928,REDACTED,556*********8997,2741,MISCELLANEOUS PUBLISHING & PRINTING,258.81,Pound Sterling (826),1.000000000,258.81,Debit,55204729232200183494481,02/09/2019,GLOUCESTER CITY COUNCIL
Gloucester City Council,23UE,Guildhall Events,GH002,Advertising & Publicity,3404,22/08/2019,21/08/2019,FACEBOOK.COM,650-543-7818,IRL,UNKNOWN,REDACTED,556*********8997,7311,ADVERTISING SERVICES,-10.13,Pound Sterling (826),1.000000000,-10.13,Credit,55204729233200483046253,02/09/2019,GLOUCESTER CITY COUNCIL
Gloucester City Council,23UE,Guildhall Events,GH002,Advertising & Publicity,3404,28/08/2019,27/08/2019,WWW.INSTANTPRINT.C,01709 382202,,S63 5DR,REDACTED,556*********8997,7338,QUICK-COPY AND REPRODUCTION SERVICES,50.99,Pound Sterling (826),1.000000000,50.99,Debit,85481479240167109477192,02/09/2019,GLOUCESTER CITY COUNCIL
Gloucester City Council,23UE,Blackfriars Weddings,GH011,Equipment and Furniture,3001,29/08/2019,28/08/2019,AMZNMktplace,amazon.co.uk,GBR,EC2A 2FA,REDACTED,556*********8997,5999,MISCELLANEOUS AND RETAIL STORES,28.53,Pound Sterling (826),1.000000000,28.53,Debit,55204729240200094375845,02/09/2019,GLOUCESTER CITY COUNCIL
Gloucester City Council,23UE,Blackfriars Weddings,GH011,Advertising & Publicity,3404,29/08/2019,28/08/2019,TWIA (23 EVENTS LTD),FARNHAM,LND,GU9 8JY,REDACTED,556*********8997,7372,COMPUTER AND DATA PROCESSING SERVICES,90,Pound Sterling (826),1.000000000,90,Debit,85383909240000002413102,02/09/2019,GLOUCESTER CITY COUNCIL
Gloucester City Council,23UE,Museum of Gloucester,MU002,Events,3070,29/08/2019,28/08/2019,FACEBK Z5JWYMWKC2,fb.me/ads,IRL,2,REDACTED,556*********8997,7311,ADVERTISING SERVICES,17,Pound Sterling (826),1.000000000,17,Debit,15265679240000196463839,02/09/2019,GLOUCESTER CITY COUNCIL
Gloucester City Council,23UE,Guildhall Events,GH002,Advertising & Publicity,3404,02/09/2019,31/08/2019,FACEBK BYXDANE6M2,fb.me/ads,IRL,2,REDACTED,556*********8997,7311,ADVERTISING SERVICES,39.8,Pound Sterling (826),1.000000000,39.8,Debit,15265679243000157240629,02/09/2019,GLOUCESTER CITY COUNCIL
Gloucester City Council,23UE,Museum of Gloucester,MU002,Events,3070,02/09/2019,02/09/2019,FACEBK 3C9VBNALC2,fb.me/ads,IRL,2,REDACTED,556*********8997,7311,ADVERTISING SERVICES,6.91,Pound Sterling (826),1.000000000,6.91,Debit,15265679244000245571547,02/09/2019,GLOUCESTER CITY COUNCIL
Gloucester City Council,23UE,Docks Complex - Services,AM006,Hospitality & Refreshments,3104,07/08/2019,06/08/2019,TESCO STORES 6654,GLOUCESTER,GBR,GL3 1AB,REDACTED,556*********4301,5411,"GROCERY STORES, SUPERMARKETS",26.5,Pound Sterling (826),1.000000000,26.5,Debit,15377759219060061707977,02/09/2019,GLOUCESTER CITY COUNCIL
Gloucester City Council,23UE,Docks Complex - Services,AM006,Building Repairs and Maintenance,1001,12/08/2019,09/08/2019,B & Q 1179,GLOUCESTER,,GL12SG,REDACTED,556*********4301,5200,HOME SUPPLY WAREHOUSE STORES,127.8,Pound Sterling (826),1.000000000,127.8,Debit,85481479222162501197250,02/09/2019,GLOUCESTER CITY COUNCIL
Gloucester City Council,23UE,Docks Complex - Services,AM006,Hospitality & Refreshments,3104,16/08/2019,15/08/2019,TESCO STORES 6819,GLOUCESTER,GBR,GL1 1TP,REDACTED,556*********4301,5411,"GROCERY STORES, SUPERMARKETS",4.4,Pound Sterling (826),1.000000000,4.4,Debit,15377759228030052506240,02/09/2019,GLOUCESTER CITY COUNCIL
Gloucester City Council,23UE,Docks Complex - Services,AM006,Building Repairs and Maintenance,1001,16/08/2019,15/08/2019,B & Q 1179,GLOUCESTER,,GL12SG,REDACTED,556*********4301,5200,HOME SUPPLY WAREHOUSE STORES,69.68,Pound Sterling (826),1.000000000,69.68,Debit,85481479228163968264108,02/09/2019,GLOUCESTER CITY COUNCIL
Gloucester City Council,23UE,Transformation,MT006,Equipment and Furniture,3001,28/08/2019,27/08/2019,AMZ*Primrose Payment,011-89035210,GBR,EC2A 2FA,REDACTED,556*********7185,7311,ADVERTISING SERVICES,144.98,Pound Sterling (826),1.000000000,144.98,Debit,55204729239200789336204,02/09/2019,GLOUCESTER CITY COUNCIL
Gloucester City Council,23UE,Transformation,MT006,Equipment and Furniture,3001,28/08/2019,27/08/2019,HOMESCAPES EUROPA LTD,SUTTON COLDFI,GBR,B74 3JW,REDACTED,556*********7185,5712,"FURNITURE, HOME FURNISHINGS AND EQUIPMENT STORES",85.47,Pound Sterling (826),1.000000000,85.47,Debit,15276329240000204490310,02/09/2019,GLOUCESTER CITY COUNCIL
Gloucester City Council,23UE,Managing Director & Directors,MT001,Equipment and Furniture,3001,13/08/2019,12/08/2019,iStock.com,INTERNET,,D18,REDACTED,556*********4234,7333,"COMMERCIAL PHOTOGRAPHY, ART, AND GRAPHICS",8.4,Pound Sterling (826),1.000000000,8.4,Debit,05184899224009098711834,02/09/2019,GLOUCESTER CITY COUNCIL
Gloucester City Council,23UE,Managing Director & Directors,MT001,Equipment and Furniture,3001,13/08/2019,12/08/2019,iStock.com,INTERNET,,D18,REDACTED,556*********4234,7333,"COMMERCIAL PHOTOGRAPHY, ART, AND GRAPHICS",42,Pound Sterling (826),1.000000000,42,Debit,05184899224009098718870,02/09/2019,GLOUCESTER CITY COUNCIL
Gloucester City Council,23UE,Civica Admin Charges,BI002,Professional Advice/Consultants Fees,3952,19/08/2019,16/08/2019,HMCOURTS-SERVICE.G,01452420100,,GL12ZG,REDACTED,556*********4234,9222,FINES,490,Pound Sterling (826),1.000000000,490,Debit,85481479229164246280295,02/09/2019,GLOUCESTER CITY COUNCIL
Gloucester City Council,23UE,Transformation,MT006,Equipment and Furniture,3001,19/08/2019,17/08/2019,AMZNMKTPLACE AMAZON.CO,AMAZON.CO.UK,GBR,EC2A 2FA,REDACTED,556*********4234,5999,MISCELLANEOUS AND RETAIL STORES,33.99,Pound Sterling (826),1.000000000,33.99,Debit,85389249229932031377173,02/09/2019,GLOUCESTER CITY COUNCIL
Gloucester City Council,23UE,Council Streetcare Team,NE002,General Supplies/Materials,3025,28/08/2019,27/08/2019,AMZNMktplace,amazon.co.uk,GBR,EC2A 2FA,REDACTED,556*********4234,5999,MISCELLANEOUS AND RETAIL STORES,43.98,Pound Sterling (826),1.000000000,43.98,Debit,55204729239200727648769,02/09/2019,GLOUCESTER CITY COUNCIL
Gloucester City Council,23UE,Managing Director & Directors,MT001,Equipment and Furniture,3001,29/08/2019,28/08/2019,iStock.com,INTERNET,,D18,REDACTED,556*********4234,7333,"COMMERCIAL PHOTOGRAPHY, ART, AND GRAPHICS",7,Pound Sterling (826),1.000000000,7,Debit,05184899240009300481218,02/09/2019,GLOUCESTER CITY COUNCIL
Gloucester City Council,23UE,Members Support,DS002,General Supplies/Materials,3025,14/08/2019,13/08/2019,TIMPSON LTD,GLOUCESTER,,GL11XH,REDACTED,556*********3029,7251,"SHOE REPAIR SHOPS, SHOE SHINE PARLORS & HAT CLEANING SHOPS",30,Pound Sterling (826),1.000000000,30,Debit,85481479225163432675296,02/09/2019,GLOUCESTER CITY COUNCIL
Gloucester City Council,23UE,Housing Services,HS001,B&B Payments,1303,05/08/2019,02/08/2019,TRAVELODGE GB0000,THAME,,OX9 3AT,REDACTED,556*********6959,3615,TRAVELODGE,182,Pound Sterling (826),1.000000000,182,Debit,55504439214298148695668,02/09/2019,GLOUCESTER CITY COUNCIL
Gloucester City Council,23UE,Housing Services,HS001,B&B Payments,1303,05/08/2019,02/08/2019,TRAVELODGE GB0000,THAME,,OX9 3AT,REDACTED,556*********6959,3615,TRAVELODGE,202,Pound Sterling (826),1.000000000,202,Debit,55504439214298148631481,02/09/2019,GLOUCESTER CITY COUNCIL
Gloucester City Council,23UE,Housing Services,HS001,B&B Payments,1303,05/08/2019,02/08/2019,TRAVELODGE GB0000,THAME,,OX9 3AT,REDACTED,556*********6959,3615,TRAVELODGE,182,Pound Sterling (826),1.000000000,182,Debit,55504439214298148585778,02/09/2019,GLOUCESTER CITY COUNCIL
Gloucester City Council,23UE,Housing Services,HS001,B&B Payments,1303,05/08/2019,02/08/2019,TRAVELODGE GB0000,THAME,,OX9 3AT,REDACTED,556*********6959,3615,TRAVELODGE,182,Pound Sterling (826),1.000000000,182,Debit,55504439214298148584201,02/09/2019,GLOUCESTER CITY COUNCIL
Gloucester City Council,23UE,Housing Services,HS001,Mileage and Travel Allowances,2401,05/08/2019,02/08/2019,VERIFONE TAXI/PRIVATE,LONDON,GBR,SE5 0TA,REDACTED,556*********6959,4121,TAXICABS/LIMOUSINES,29.6,Pound Sterling (826),1.000000000,29.6,Debit,05272479215910009092922,02/09/2019,GLOUCESTER CITY COUNCIL
Gloucester City Council,23UE,Housing Services,HS001,B&B Payments,1303,05/08/2019,02/08/2019,TRAVELODGE GB0000,THAME,,OX9 3AT,REDACTED,556*********6959,3615,TRAVELODGE,-182,Pound Sterling (826),1.000000000,-182,Credit,55504439214298148589325,02/09/2019,GLOUCESTER CITY COUNCIL
Gloucester City Council,23UE,Housing Services,HS001,B&B Payments,1303,06/08/2019,05/08/2019,TRAVELODGE GB0000,THAME,,OX9 3AT,REDACTED,556*********6959,3615,TRAVELODGE,168,Pound Sterling (826),1.000000000,168,Debit,55504439217298166519797,02/09/2019,GLOUCESTER CITY COUNCIL
Gloucester City Council,23UE,Housing Services,HS001,B&B Payments,1303,06/08/2019,05/08/2019,TRAVELODGE GB0000,THAME,,OX9 3AT,REDACTED,556*********6959,3615,TRAVELODGE,301,Pound Sterling (826),1.000000000,301,Debit,55504439217298166479000,02/09/2019,GLOUCESTER CITY COUNCIL
Gloucester City Council,23UE,Housing Services,HS001,B&B Payments,1303,07/08/2019,06/08/2019,TRAVELODGE GB0000,THAME,,OX9 3AT,REDACTED,556*********6959,3615,TRAVELODGE,49,Pound Sterling (826),1.000000000,49,Debit,55504439218298174076151,02/09/2019,GLOUCESTER CITY COUNCIL
Gloucester City Council,23UE,Housing Services,HS001,B&B Payments,1303,07/08/2019,06/08/2019,TRAVELODGE GB0000,THAME,,OX9 3AT,REDACTED,556*********6959,3615,TRAVELODGE,354,Pound Sterling (826),1.000000000,354,Debit,55504439218298173992978,02/09/2019,GLOUCESTER CITY COUNCIL
Gloucester City Council,23UE,Housing Services,HS001,B&B Payments,1303,07/08/2019,06/08/2019,TRAVELODGE GB0000,THAME,,OX9 3AT,REDACTED,556*********6959,3615,TRAVELODGE,404,Pound Sterling (826),1.000000000,404,Debit,55504439218298173981104,02/09/2019,GLOUCESTER CITY COUNCIL
Gloucester City Council,23UE,Housing Services,HS001,B&B Payments,1303,08/08/2019,07/08/2019,TRAVELODGE GB0000,THAME,,OX9 3AT,REDACTED,556*********6959,3615,TRAVELODGE,158,Pound Sterling (826),1.000000000,158,Debit,55504439219298181438377,02/09/2019,GLOUCESTER CITY COUNCIL
Gloucester City Council,23UE,Housing Services,HS001,B&B Payments,1303,08/08/2019,07/08/2019,TRAVELODGE GB0000,THAME,,OX9 3AT,REDACTED,556*********6959,3615,TRAVELODGE,94,Pound Sterling (826),1.000000000,94,Debit,55504439219298181372733,02/09/2019,GLOUCESTER CITY COUNCIL
Gloucester City Council,23UE,Housing Services,HS001,B&B Payments,1303,09/08/2019,08/08/2019,TRAVELODGE GB0000,THAME,,OX9 3AT,REDACTED,556*********6959,3615,TRAVELODGE,74,Pound Sterling (826),1.000000000,74,Debit,55504439220298188646508,02/09/2019,GLOUCESTER CITY COUNCIL
Gloucester City Council,23UE,Housing Services,HS001,B&B Payments,1303,09/08/2019,08/08/2019,TRAVELODGE GB0000,THAME,,OX9 3AT,REDACTED,556*********6959,3615,TRAVELODGE,74,Pound Sterling (826),1.000000000,74,Debit,55504439220298188638422,02/09/2019,GLOUCESTER CITY COUNCIL
Gloucester City Council,23UE,Housing Services,HS001,B&B Payments,1303,12/08/2019,09/08/2019,TRAVELODGE GB0000,THAME,,OX9 3AT,REDACTED,556*********6959,3615,TRAVELODGE,187,Pound Sterling (826),1.000000000,187,Debit,55504439221298198241885,02/09/2019,GLOUCESTER CITY COUNCIL
Gloucester City Council,23UE,Housing Services,HS001,B&B Payments,1303,12/08/2019,09/08/2019,TRAVELODGE GB0000,THAME,,OX9 3AT,REDACTED,556*********6959,3615,TRAVELODGE,187,Pound Sterling (826),1.000000000,187,Debit,55504439221298198231555,02/09/2019,GLOUCESTER CITY COUNCIL
Gloucester City Council,23UE,Housing Services,HS001,B&B Payments,1303,12/08/2019,09/08/2019,TRAVELODGE GB0000,THAME,,OX9 3AT,REDACTED,556*********6959,3615,TRAVELODGE,187,Pound Sterling (826),1.000000000,187,Debit,55504439221298198174649,02/09/2019,GLOUCESTER CITY COUNCIL
Gloucester City Council,23UE,Housing Services,HS001,B&B Payments,1303,12/08/2019,09/08/2019,TRAVELODGE GB0000,THAME,,OX9 3AT,REDACTED,556*********6959,3615,TRAVELODGE,187,Pound Sterling (826),1.000000000,187,Debit,55504439221298198160010,02/09/2019,GLOUCESTER CITY COUNCIL
Gloucester City Council,23UE,Housing Services,HS001,B&B Payments,1303,13/08/2019,12/08/2019,TRAVELODGE GB0000,THAME,,OX9 3AT,REDACTED,556*********6959,3615,TRAVELODGE,59,Pound Sterling (826),1.000000000,59,Debit,55504439224298114189223,02/09/2019,GLOUCESTER CITY COUNCIL
Gloucester City Council,23UE,Housing Services,HS001,B&B Payments,1303,13/08/2019,12/08/2019,TRAVELODGE GB0000,THAME,,OX9 3AT,REDACTED,556*********6959,3615,TRAVELODGE,138,Pound Sterling (826),1.000000000,138,Debit,55504439224298114116820,02/09/2019,GLOUCESTER CITY COUNCIL
Gloucester City Council,23UE,Housing Services,HS001,B&B Payments,1303,13/08/2019,12/08/2019,TRAVELODGE GB0000,THAME,,OX9 3AT,REDACTED,556*********6959,3615,TRAVELODGE,98,Pound Sterling (826),1.000000000,98,Debit,55504439224298114183481,02/09/2019,GLOUCESTER CITY COUNCIL
Gloucester City Council,23UE,Housing Services,HS001,B&B Payments,1303,13/08/2019,12/08/2019,TRAVELODGE GB0000,THAME,,OX9 3AT,REDACTED,556*********6959,3615,TRAVELODGE,98,Pound Sterling (826),1.000000000,98,Debit,55504439224298114082576,02/09/2019,GLOUCESTER CITY COUNCIL
Gloucester City Council,23UE,Housing Services,HS001,B&B Payments,1303,13/08/2019,12/08/2019,TRAVELODGE GB0000,THAME,,OX9 3AT,REDACTED,556*********6959,3615,TRAVELODGE,343,Pound Sterling (826),1.000000000,343,Debit,55504439224298114088144,02/09/2019,GLOUCESTER CITY COUNCIL
Gloucester City Council,23UE,Housing Services,HS001,B&B Payments,1303,15/08/2019,14/08/2019,TRAVELODGE GB0000,THAME,,OX9 3AT,REDACTED,556*********6959,3615,TRAVELODGE,-69,Pound Sterling (826),1.000000000,-69,Credit,55504439226295340783595,02/09/2019,GLOUCESTER CITY COUNCIL
Gloucester City Council,23UE,Housing Services,HS001,Equipment and Furniture,3001,16/08/2019,15/08/2019,WWW.BACKCS.CO.UK,INTERNET,GBR,PR25 4GU,REDACTED,556*********6959,5047,LAB/MEDICAL/DENTAL/OPHTHALMIC HOSPITAL EQUIP AND SUPPLIES,70.68,Pound Sterling (826),1.000000000,70.68,Debit,05272469228910014108024,02/09/2019,GLOUCESTER CITY COUNCIL
Gloucester City Council,23UE,Housing Services,HS001,B&B Payments,1303,19/08/2019,16/08/2019,TRAVELODGE GB0000,THAME,,OX9 3AT,REDACTED,556*********6959,3615,TRAVELODGE,338,Pound Sterling (826),1.000000000,338,Debit,55504439228298145177763,02/09/2019,GLOUCESTER CITY COUNCIL
Gloucester City Council,23UE,Housing Services,HS001,B&B Payments,1303,20/08/2019,19/08/2019,TRAVELODGE GB0000,THAME,,OX9 3AT,REDACTED,556*********6959,3615,TRAVELODGE,422,Pound Sterling (826),1.000000000,422,Debit,55504439231298161772989,02/09/2019,GLOUCESTER CITY COUNCIL
Gloucester City Council,23UE,Housing Services,HS001,B&B Payments,1303,20/08/2019,19/08/2019,TRAVELODGE GB0000,THAME,,OX9 3AT,REDACTED,556*********6959,3615,TRAVELODGE,138,Pound Sterling (826),1.000000000,138,Debit,55504439231298161831280,02/09/2019,GLOUCESTER CITY COUNCIL
Gloucester City Council,23UE,Housing Services,HS001,B&B Payments,1303,21/08/2019,20/08/2019,TRAVELODGE GB0000,THAME,,OX9 3AT,REDACTED,556*********6959,3615,TRAVELODGE,123,Pound Sterling (826),1.000000000,123,Debit,55504439232298169354789,02/09/2019,GLOUCESTER CITY COUNCIL
Gloucester City Council,23UE,Housing Services,HS001,B&B Payments,1303,21/08/2019,20/08/2019,TRAVELODGE GB0000,THAME,,OX9 3AT,REDACTED,556*********6959,3615,TRAVELODGE,64,Pound Sterling (826),1.000000000,64,Debit,55504439232298169362774,02/09/2019,GLOUCESTER CITY COUNCIL
Gloucester City Council,23UE,Housing Services,HS001,B&B Payments,1303,23/08/2019,22/08/2019,TRAVELODGE GB0000,THAME,,OX9 3AT,REDACTED,556*********6959,3615,TRAVELODGE,44,Pound Sterling (826),1.000000000,44,Debit,55504439234298184032012,02/09/2019,GLOUCESTER CITY COUNCIL
Gloucester City Council,23UE,Housing Services,HS001,B&B Payments,1303,23/08/2019,22/08/2019,TRAVELODGE GB0000,THAME,,OX9 3AT,REDACTED,556*********6959,3615,TRAVELODGE,319,Pound Sterling (826),1.000000000,319,Debit,55504439234298183970899,02/09/2019,GLOUCESTER CITY COUNCIL
Gloucester City Council,23UE,Housing Services,HS001,B&B Payments,1303,23/08/2019,22/08/2019,TRAVELODGE GB0000,THAME,,OX9 3AT,REDACTED,556*********6959,3615,TRAVELODGE,88,Pound Sterling (826),1.000000000,88,Debit,55504439234298183923005,02/09/2019,GLOUCESTER CITY COUNCIL
Gloucester City Council,23UE,Housing Services,HS001,General Supplies/Materials,3025,26/08/2019,23/08/2019,Amazon Prime*MA01T44J4,amzn.co.uk/pm,LUX,L2338,REDACTED,556*********6959,5968,CONTINUITY/SUBSCRIPTION MERCHANTS,7.99,Pound Sterling (826),1.000000000,7.99,Debit,55204729235200893988217,02/09/2019,GLOUCESTER CITY COUNCIL
Gloucester City Council,23UE,HMO Licences,PS004,External Training Course Fees,0550,26/08/2019,23/08/2019,GOVERNMENT EVENTS,COVENT GARDEN,LND,WC2E 9RA,REDACTED,556*********6959,8641,"CIVIC, SOCIAL AND FRATERNAL ASSOCIATIONS",727.68,Pound Sterling (826),1.000000000,727.68,Debit,85383909235000003387419,02/09/2019,GLOUCESTER CITY COUNCIL
Gloucester City Council,23UE,Housing Services,HS001,B&B Payments,1303,26/08/2019,23/08/2019,TRAVELODGE GB0000,THAME,,OX9 3AT,REDACTED,556*********6959,3615,TRAVELODGE,256,Pound Sterling (826),1.000000000,256,Debit,55504439235298193684240,02/09/2019,GLOUCESTER CITY COUNCIL
Gloucester City Council,23UE,Housing Services,HS001,B&B Payments,1303,26/08/2019,23/08/2019,TRAVELODGE GB0000,THAME,,OX9 3AT,REDACTED,556*********6959,3615,TRAVELODGE,206,Pound Sterling (826),1.000000000,206,Debit,55504439235298193639038,02/09/2019,GLOUCESTER CITY COUNCIL
Gloucester City Council,23UE,Housing Services,HS001,B&B Payments,1303,26/08/2019,21/08/2019,TRAVELODGE GB0809,GLOUCESTER,,GL1 5SF,REDACTED,556*********6959,3615,TRAVELODGE,355.5,Pound Sterling (826),1.000000000,355.5,Debit,55504439235110253157555,02/09/2019,GLOUCESTER CITY COUNCIL
Gloucester City Council,23UE,Housing Services,HS001,B&B Payments,1303,28/08/2019,27/08/2019,TRAVELODGE GB0000,THAME,,OX9 3AT,REDACTED,556*********6959,3615,TRAVELODGE,172,Pound Sterling (826),1.000000000,172,Debit,55504439239298115959445,02/09/2019,GLOUCESTER CITY COUNCIL
Gloucester City Council,23UE,Housing Services,HS001,B&B Payments,1303,28/08/2019,27/08/2019,TRAVELODGE GB0000,THAME,,OX9 3AT,REDACTED,556*********6959,3615,TRAVELODGE,363,Pound Sterling (826),1.000000000,363,Debit,55504439239298115952945,02/09/2019,GLOUCESTER CITY COUNCIL
Gloucester City Council,23UE,Housing Services,HS001,B&B Payments,1303,28/08/2019,27/08/2019,TRAVELODGE GB0000,THAME,,OX9 3AT,REDACTED,556*********6959,3615,TRAVELODGE,123,Pound Sterling (826),1.000000000,123,Debit,55504439239298115953901,02/09/2019,GLOUCESTER CITY COUNCIL
Gloucester City Council,23UE,Housing Services,HS001,B&B Payments,1303,29/08/2019,28/08/2019,TRAVELODGE GB0000,THAME,,OX9 3AT,REDACTED,556*********6959,3615,TRAVELODGE,378,Pound Sterling (826),1.000000000,378,Debit,55504439240298123744646,02/09/2019,GLOUCESTER CITY COUNCIL
Gloucester City Council,23UE,Housing Services,HS001,Public Transport - Staff,2402,30/08/2019,29/08/2019,Trainline.com,London,GBR,EC1N 2TD,REDACTED,556*********6959,4112,PASSENGER RAILWAYS,89.5,Pound Sterling (826),1.000000000,89.5,Debit,15265679241000107903724,02/09/2019,GLOUCESTER CITY COUNCIL
Gloucester City Council,23UE,Housing Services,HS001,Public Transport - Staff,2402,30/08/2019,29/08/2019,Trainline.com,London,GBR,EC1N 2TD,REDACTED,556*********6959,4112,PASSENGER RAILWAYS,44.35,Pound Sterling (826),1.000000000,44.35,Debit,15265679241000265723625,02/09/2019,GLOUCESTER CITY COUNCIL
Gloucester City Council,23UE,Housing Services,HS001,B&B Payments,1303,30/08/2019,29/08/2019,TRAVELODGE GB0000,THAME,,OX9 3AT,REDACTED,556*********6959,3615,TRAVELODGE,191,Pound Sterling (826),1.000000000,191,Debit,55504439241298131537411,02/09/2019,GLOUCESTER CITY COUNCIL
Gloucester City Council,23UE,Housing Services,HS001,B&B Payments,1303,02/09/2019,30/08/2019,TRAVELODGE GB0000,THAME,,OX9 3AT,REDACTED,556*********6959,3615,TRAVELODGE,162,Pound Sterling (826),1.000000000,162,Debit,55504439242298141878440,02/09/2019,GLOUCESTER CITY COUNCIL
Gloucester City Council,23UE,Housing Services,HS001,B&B Payments,1303,02/09/2019,30/08/2019,TRAVELODGE GB0000,THAME,,OX9 3AT,REDACTED,556*********6959,3615,TRAVELODGE,275,Pound Sterling (826),1.000000000,275,Debit,55504439242298141844558,02/09/2019,GLOUCESTER CITY COUNCIL
Gloucester City Council,23UE,Guildhall Events,GH002,Advertising & Publicity,3404,12/08/2019,10/08/2019,SQUARESPACE INC.,6465803456,NY,10014,REDACTED,556*********8256,7372,COMPUTER AND DATA PROCESSING SERVICES,180,Pound Sterling (826),1.000000000,180,Debit,85121529223931909525636,02/09/2019,GLOUCESTER CITY COUNCIL
Gloucester City Council,23UE,Civica Admin Charges,BI002,Professional Membership & Subscriptions,3403,29/08/2019,28/08/2019,SurveyMonkey,Dublin,IRL,4,REDACTED,556*********3063,7372,COMPUTER AND DATA PROCESSING SERVICES,384,Pound Sterling (826),1.000000000,384,Debit,15265679240004719064942,02/09/2019,GLOUCESTER CITY COUNCIL
Gloucester City Council,23UE,Transformation,MT006,Equipment and Furniture,3001,02/09/2019,30/08/2019,SOHOCOMMERCIAL,0845 0704094,,KT17 3BY,REDACTED,556*********3063,5085,INDUSTRIAL SUPPLIES NOT ELSEWHERE CLASSI,459.98,Pound Sterling (826),1.000000000,459.98,Debit,85481479243167922214019,02/09/2019,GLOUCESTER CITY COUNCIL
